Workbook

Sheet SimS3K3
B2: Start SimS3K3 | AC2: Q 4 4 .1 | AE2: R 8 | AF2: Update | AG2: =1/75 -> 0.01333333333 | AH2: -5.371102832 | AK2: -2.75764546 | AN2: 2.72286899
B3: Time increment | C3: =1/75 -> 0.01333333333 | D3: =1/C3 -> 75 | H3: Instructions: | AG3: Sec/Ft | AH3: 244.5113843 | AJ3: Sec/Ft | AK3: 119.9946696 | AM3: Ft/Sec | AN3: 0.05243390921
B4: Speed knots | C4: 16 | D4: =C4*6076/3600 -> 27.00444444 | I4: Highlight the cell in which output is to start, e.g. b2 Start SimS3K3 . | AG4: Ft/Sec | AH4: 0.04839871037 | AI4: =SUM(AI6:AI14) -> 0.3792509069 | AJ4: Ft/Sec | AK4: 0.02547601251 | AL4: =SUM(AL6:AL14) -> 0.1030916742 | AM4: Ft/Sec | AO4: =SUM(AO6:AO14) -> 0.1406463391
B5: MI - Moment Of Inertia | C5: 6768.164062 | G5: 3263.476562 | I5: Go to View, Macros, View Macros, and highlight SimS3K3, and run | AB5: Knots | AC5: Ft/Sec | AD5: G1 | AE5: G2 | AF5: G3 | AG5: G(1,1) | AH5: G(1,1) | AJ5: G(1,2) | AK5: G(1,2) | AM5: G(1,3) | AN5: G(1,3)
B6: Kr | C6: 0.4665576548 | G6: 1.51187444 | I6: You will notice that the number after iteration, "c23", cycles from 1 to 200 | AB6: 10 | AC6: =AB6*6076/3600 -> 16.87777778 | AD6: 10.14002589 | AE6: 4.8900032 | AF6: 3.853167134 | AG6: =AD6 -> 10.14002589 | AH6: =AH$2+AH$3/$AC6+AH$4*$AC6 -> 9.932938639 | AI6: =(AG6-AH6)^2 -> 0.04288513135 | AJ6: =AE6 -> 4.8900032 | AK6: =AK$2+AK$3/$AC6+AK$4*$AC6 -> 4.781957944 | AL6: =(AJ6-AK6)^2 -> 0.01167377728 | AM6: =AF6 -> 3.853167134 | AN6: =AN$2+AN$3*$AC6 -> 3.607836858 | AO6: =(AM6-AN6)^2 -> 0.06018694442
B7: j | C7: 1.935323379 | D7: 3.745476582 | G7: 2.248545723 | I7: Wait for the output to be placed on your sheet | AB7: 15 | AC7: =AB7*6076/3600 -> 25.31666667 | AD7: 5.104327645 | AE7: 2.41478741 | AF7: 4.062872232 | AG7: =AD7 -> 5.104327645 | AH7: 5.512310381 | AI7: =(AG7-AH7)^2 -> 0.1664499128 | AJ7: 2.41478741 | AK7: 2.627072208 | AL7: =(AJ7-AK7)^2 -> 0.04506483552 | AM7: 4.062872232 | AN7: =AN$2+AN$3*$AC7 -> 4.050320792 | AO7: 0.0001575386533
B8: Vert Acc dKh/dAoA | C8: 119.3164392 | D8: 0.1 | G8: 291.2999004 | I8: Below the simulation is graphed | AB8: 20 | AC8: =AB8*6076/3600 -> 33.75555556 | AD8: 3.367585911 | AE8: 1.58443049 | AF8: 4.389769726 | AG8: 3.367585911 | AH8: 3.506211921 | AI8: 0.01921717077 | AJ8: 1.58443049 | AK8: 1.657123959 | AL8: 0.005284340396 | AM8: 4.389769726 | AN8: 4.492804726 | AO8: 0.01061621117
B9: CGFoil | C9: 5.5 | G9: 3 | L9: Comments: | AB9: 25 | AC9: 42.19444444 | AD9: 2.557904479 | AE9: 1.208720649 | AF9: 4.794925375 | AG9: 2.557904479 | AH9: 2.465925381 | AI9: 0.008460154479 | AJ9: 1.208720649 | AK9: 1.161150705 | AL9: 0.002262899496 | AM9: 4.794925375 | AN9: 4.935288659 | AO9: 0.01970185152
B10: Hull radius | C10: 3.5 | D10: 0.75 | E10: 1.5 | G10: 3.5 | L10: This example (code) calculates the A and B matrixes, from the differential equations of roll dynamics | AB10: 30 | AC10: 50.63333333 | AD10: 2.10649876 | AE10: 1.005329077 | AF10: 5.250222422 | AG10: 2.10649876 | AH10: 1.908544801 | AI10: 0.03918576996 | AJ10: 1.005329077 | AK10: 0.9021649493 | AL10: 0.01064283727 | AM10: 5.250222422 | AN10: 5.377772593 | AO10: 0.01626904618
B11: tq foil roll rate torque | C11: 3157.738752 | G11: 4933.9668 | L11: It calculates the feedback gains (g1, g2, g3) and runs a simulation | AB11: 35 | AC11: 59.07222222 | AD11: 1.823321919 | AE11: 0.8811404436 | AF11: 5.73755516 | AG11: 1.823321919 | AH11: 1.627110483 | AI11: 0.03849892759 | AJ11: 0.8811404436 | AK11: 0.7786006203 | AL11: 0.01051441535 | AM11: 5.73755516 | AN11: 5.820256527 | AO11: 0.0068395162
B12: Control Surface torque | C12: 26594.47197 | D12: 26553.84153 | G12: 64927.91008 | L12: The simulation perturbs the roll state and simulates the roll dynamics | AB12: 40 | AC12: 67.51111111 | AD12: 1.630405842 | AE12: 0.7985220256 | AF12: 6.245657698 | AG12: 1.630405842 | AH12: 1.51814258 | AI12: 0.01260304005 | AJ12: 0.7985220256 | AK12: 0.7396746833 | AL12: 0.003463009693 | AM12: 6.245657698 | AN12: 6.262740461 | AO12: 0.0002918207974
B13: BUr BUh | C13: 3.929348007 | D13: 115.5788844 | G13: 19.89531987 | L13: You will see in the AandB subprogram most of the data peculiar to Talaria | AB13: 45 | AC13: 75.95 | AD13: 1.490834233 | AE13: 0.7399420647 | AF13: 6.767459554 | AG13: 1.490834233 | AH13: 1.524152286 | AI13: 0.001110092649 | AJ13: 0.7399420647 | AK13: 0.7571743409 | AL13: 0.0002969513449 | AM13: 6.767459554 | AN13: 6.705224395 | AO13: 0.003873215077
C14: A | F14: B | AB14: 50 | AC14: 84.38888889 | AD14: 1.385167479 | AE14: 0.6963219768 | AF14: 7.29840735 | AG14: 1.385167479 | AH14: 1.610646319 | AI14: 0.05084070724 | AJ14: 0.6963219768 | AK14: 0.8141719148 | AL14: 0.01388860789 | AM14: 7.29840735 | AN14: 7.147708329 | AO14: 0.02271019513
B15: A | C15: Roll | D15: Roll Rate | E15: Flap | F15: B | L15: To access the VB code: Go to View, Macros, highlight SimS3K3, click Edit
B16: Roll | C16: 1.00033226 | D16: 0.01329342255 | E16: 0.0003485715826 | F16: 1.549008107e-06 | L16: The upper right drop dopdown list shows the subroutines
B17: Roll Rate | C17: 0.04979020287 | D17: 0.9941301123 | E17: 0.05223448342 | F17: 0.0003485720098 | L17: SimS3K3 is the main program and contains the Q and R matrixes and the actuator delay "ndelay".
B18: Flap | C18: 0 | D18: 0 | E18: 1 | F18: 0.01333333333 | L18: It calls Control3, Kalman3, and calculates the simulation.
B19: Q | C19: Q | F19: R | L19: AandB3 calculates the state matrix A and the control matrix B.
B20: Roll | C20: 4 | D20: 0 | E20: 0 | F20: 8
B21: Roll Rate | C21: 0 | D21: 4 | E21: 0
B22: Flap | C22: 0 | D22: 0 | E22: 0.1
B23: iteration | C23: 1000 | L23: From column "AB" are placed the control gains for the speed range
B24: Control Gain | C24: g1 | D24: g2 | E24: g3 | L24: Excel Solver, ( under Data, "?" or Solver ) is used to fit functions to the gain values over their speed range
C25: 4.622899024 | D25: 2.182426741 | E25: 4.120252856 | G25: 3854.708305 | H25: 1727.402882 | I25: 2818.637543
G26: 1727.402882 | H26: 858.6842845 | I26: 1331.691464
B27: C | G27: 2818.637543 | H27: 1331.691464 | I27: 2506.882107
C28: 1 | D28: 0 | E28: 0
C29: 0 | D29: 1 | E29: 0
C30: 0 | D30: 0 | E30: 1
B31: Measurement error matrix
C32: 0.01 | D32: 0 | E32: 0
C33: 0 | D33: 1.7e-05 | E33: 0
C34: 0 | D34: 0 | E34: 1.5e-05
B35: System noise matrix
C36: 0.0001 | D36: 0 | E36: 0
C37: 0 | D37: 1e-06 | E37: 0
C38: 0 | D38: 0 | E38: 0.005
B39: Kalman iteration | C39: 1000
B40: Kalman gain h matrix | G40: SN residual | I40: 0.000140551715
C41: 0.04195078508 | D41: 1.630388028 | E41: -0.0002533261618 | G41: 0.0004195078508 | H41: 2.771659647e-05 | I41: -3.799892426e-09
C42: 0.002771659647 | D42: 0.3995887688 | E42: 9.339014423e-05 | G42: 2.771659647e-05 | H42: 6.793009069e-06 | I42: 1.400852164e-09
C43: -3.799892426e-07 | D43: 8.240306844e-05 | E43: 0.9970178533 | G43: -3.799892426e-09 | H43: 1.400852164e-09 | I43: 1.49552678e-05
B45: maxCSRate in Radians | C45: 0.6980802792 | D45: =C45*180/3.14159 -> 39.99708755 | E45: Actuator
B46: maxCSDeflect in Radians | C46: 0.2617801047 | D46: =C46*180/3.14159 -> 14.99890783 | E46: Hz
B47: Actuator delay | C47: 3 | D47: 0.04 | E47: =1/D47 -> 25
B48: Max | C48: =MAX(C52:C426) -> 0.2750011199 | D48: =MAX(D52:D426) -> 4.341265222e-05 | E48: =MAX(E52:E426) -> -0.06837691621 | F48: =MAX(F52:F426) -> 0.1031830504
B49: Min | C49: =MIN(C52:C426) -> 0.0727362471 | D49: =MIN(D52:D426) -> -0.08386303346 | E49: -0.2617801047 | F49: -0.1928378883 | H49: =E49*180/3.14159 -> -14.99890783
B50: t | C50: Roll | D50: Rate | E50: Flap | F50: Control | G50: 0.259 | H50: =G50*180/3.14159 -> 14.83961943
C51: xtt1 | D51: xtt2 | E51: xtt3 | F51: -u(1, 1)
B52: 0 | C52: 0.2750000459 | D52: 6.871133951e-06 | E52: -0.2617801047 | F52: 0 | G52: =C52*180/3.14159 -> 15.7563553
B53: 0.01333333333 | C53: 0.2750002597 | D53: 2.51903349e-05 | E53: -0.2617801047 | F53: 0 | G53: =C53*180/3.14159 -> 15.75636756
B54: 0.02666666667 | C54: 0.2750007172 | D54: 4.341265222e-05 | E54: -0.2617801047 | F54: 0 | G54: 15.75639377
B55: 0.04 | C55: 0.2750011199 | D55: -5.307486196e-06 | E55: -0.2617801047 | F55: -0.191806191
B56: 0.05333333333 | C56: 0.2750008736 | D56: -5.405168599e-05 | E56: -0.2617801047 | F56: -0.1927531842
B57: 0.06666666667 | C57: 0.2749999793 | D57: -0.0001025366235 | E57: -0.2617801047 | F57: -0.1927950678
B58: 0.08 | C58: 0.27499844 | D58: -0.0001507964172 | E58: -0.2617801047 | F58: -0.1928378883
B59: 0.09333333333 | C59: 0.2749962588 | D59: -0.0001988123476 | E59: -0.2617801047 | F59: -0.1927310964
B60: 0.1066666667 | C60: 0.2749934388 | D60: -0.0002466167161 | E60: -0.2617801047 | F60: -0.1926211791
B61: 0.12 | C61: 0.2749899826 | D61: -0.0002942417054 | E61: -0.2617801047 | F61: -0.1925087726
B62: 0.1333333333 | C62: 0.2749858922 | D62: -0.0003417191584 | E62: -0.2617801047 | F62: -0.1923938161
B63: 0.1466666667 | C63: 0.2749811696 | D63: -0.0003890806423 | E63: -0.2617801047 | F63: -0.1922763655
B64: 0.16 | C64: 0.274975816 | D64: -0.0004363574314 | E64: -0.2617801047 | F64: -0.1921563632
B65: 0.1733333333 | C65: 0.2749698323 | D65: -0.0004835805293 | E65: -0.2617801047 | F65: -0.1920337497
B66: 0.1866666667 | C66: 0.2749632191 | D66: -0.0005307806904 | E66: -0.2617801047 | F66: -0.1919084643
B67: 0.2 | C67: 0.2749559764 | D67: -0.000577988442 | E67: -0.2617801047 | F67: -0.1917804447
B68: 0.2133333333 | C68: 0.2749481039 | D68: -0.0006252341047 | E68: -0.2617801047 | F68: -0.1916496277
B69: 0.2266666667 | C69: 0.274939601 | D69: -0.0006725478141 | E69: -0.2617801047 | F69: -0.1915159483
B70: 0.24 | C70: 0.2749304666 | D70: -0.0007199595408 | E70: -0.2617801047 | F70: -0.1913793404
B71: 0.2533333333 | C71: 0.274920699 | D71: -0.0007674991113 | E71: -0.2617801047 | F71: -0.1912397362
B72: 0.2666666667 | C72: 0.2749102965 | D72: -0.0008151962281 | E72: -0.2617801047 | F72: -0.1910970668
B73: 0.28 | C73: 0.2748992566 | D73: -0.0008630804895 | E73: -0.2617801047 | F73: -0.1909512615
B74: 0.2933333333 | C74: 0.2748875768 | D74: -0.0009111814096 | E74: -0.2617801047 | F74: -0.1908022483
B75: 0.3066666667 | C75: 0.2748752539 | D75: -0.0009595284374 | E75: -0.2617801047 | F75: -0.1906499533
B76: 0.32 | C76: 0.2748622845 | D76: -0.001008150977 | E76: -0.2617801047 | F76: -0.1904943014
B77: 0.3333333333 | C77: 0.2748486646 | D77: -0.001057078406 | E77: -0.2617801047 | F77: -0.1903352156
B78: 0.3466666667 | C78: 0.2748343901 | D78: -0.001106340095 | E78: -0.2617801047 | F78: -0.1901726174
B79: 0.36 | C79: 0.2748194562 | D79: -0.001155965426 | E79: -0.2617801047 | F79: -0.1900064263
B80: 0.3733333333 | C80: 0.2748038579 | D80: -0.001205983814 | E80: -0.2617801047 | F80: -0.1898365603
B81: 0.3866666667 | C81: 0.2747875898 | D81: -0.00125642472 | E81: -0.2617801047 | F81: -0.1896629357
B82: 0.4 | C82: 0.274770646 | D82: -0.001307317675 | E82: -0.2617801047 | F82: -0.1894854665
B83: 0.4133333333 | C83: 0.2747530203 | D83: -0.001358692297 | E83: -0.2617801047 | F83: -0.1893040653
B84: 0.4266666667 | C84: 0.2747347062 | D84: -0.001410578307 | E84: -0.2617801047 | F84: -0.1891186426
B85: 0.44 | C85: 0.2747156965 | D85: -0.001463005553 | E85: -0.2617801047 | F85: -0.1889291068
B86: 0.4533333333 | C86: 0.2746959838 | D86: -0.00151600402 | E86: -0.2617801047 | F86: -0.1887353645
B87: 0.4666666667 | C87: 0.2746755604 | D87: -0.001569603858 | E87: -0.2617801047 | F87: -0.1885373201
B88: 0.48 | C88: 0.2746544179 | D88: -0.001623835391 | E88: -0.2617801047 | F88: -0.188334876
B89: 0.4933333333 | C89: 0.2746325479 | D89: -0.001678729142 | E89: -0.2617801047 | F89: -0.1881279323
B90: 0.5066666667 | C90: 0.2746099411 | D90: -0.00173431585 | E90: -0.2617801047 | F90: -0.187916387
B91: 0.52 | C91: 0.2745865883 | D91: -0.001790626484 | E91: -0.2617801047 | F91: -0.1877001358
B92: 0.5333333333 | C92: 0.2745624795 | D92: -0.001847692267 | E92: -0.2617801047 | F92: -0.1874790722 | V92: ab | W92: ab | X92: ab | Y92: ab | Z92: ab | AA92: ab | AB92: ab | AC92: ab | AD92: ab | AE92: u | AF92: bu | AG92: bu | AH92: bu
B93: 0.5466666667 | C93: 0.2745376044 | D93: -0.001905544692 | E93: -0.2617801047 | F93: -0.1872530872 | V93: 1,1 | W93: 1,2 | X93: 1,3 | Y93: 2,1 | Z93: 2,2 | AA93: 2,3 | AB93: 3,1 | AC93: 3,2 | AD93: 3,3 | AE93: 1,1 | AF93: 1,1 | AG93: 2,1 | AH93: 3,1
B94: 0.56 | C94: 0.2745119523 | D94: -0.001964215538 | E94: -0.2617801047 | F94: -0.1870220695 | U94: 0.013 | V94: 1.000315871 | W94: 0.01296202282 | X94: 0.0003313771139 | Y94: 0.04854895294 | Z94: 0.9942683396 | AA94: 0.05093229855 | AB94: 0 | AC94: 0 | AD94: 1 | AE94: 0.0006666666667 | AF94: 2.20918076e-07 | AG94: 3.39548657e-05 | AH94: 0.0006666666667
B95: 0.5733333333 | C95: 0.2744855122 | D95: -0.002023736893 | E95: -0.2617801047 | F95: -0.1867859052 | U95: 0.01233333333 | V95: 1.000284332 | W95: 0.01229908477 | X95: 0.0002982905126 | Y95: 0.046065934 | Z95: 0.9945461 | AA95: 0.04832738424 | AB95: 0 | AC95: 0 | AD95: 1 | AE95: 0.0006666666667 | AF95: 4.197784177e-07 | AG95: 6.617312186e-05 | AH95: 0.001333333333
B96: 0.5866666667 | C96: 0.2744582724 | D96: -0.00208414117 | E96: -0.2617801047 | F96: -0.1865444781 | U96: 0.01166666667 | V96: 1.000254449 | W96: 0.01163596097 | X96: 0.0002669407638 | Y96: 0.04358221932 | Z96: 0.9948256028 | AA96: 0.04572174005 | AB96: 0 | AC96: 0 | AD96: 1 | AE96: 0.0006666666667 | AF96: 5.977389269e-07 | AG96: 9.665428189e-05 | AH96: 0.002
B97: 0.6 | C97: 0.274430221 | D97: -0.002145461124 | E97: -0.2617801047 | F97: -0.186297669 | U97: 0.011 | V97: 1.000226223 | W97: 0.01097265025 | X97: 0.0002373283557 | Y97: 0.04109780455 | Z97: 0.9951068488 | AA97: 0.04311536139 | AB97: 0 | AC97: 0 | AD97: 1 | AE97: 0.0006666666667 | AF97: 7.559578307e-07 | AG97: 0.0001253978562 | AH97: 0.002666666667
B98: 0.6133333333 | C98: 0.2744013455 | D98: -0.002207729875 | E98: -0.2617801047 | F98: -0.1860453566 | U98: 0.01033333333 | V98: 1.000199653 | W98: 0.01030915145 | X98: 0.0002094537795 | Y98: 0.03861268534 | Z98: 0.995389839 | AA98: 0.04050824371 | AB98: 0 | AC98: 0 | AD98: 1 | AE98: 0.0006666666667 | AF98: 8.955936837e-07 | AG98: 0.000152403352 | AH98: 0.003333333333
B99: 0.6266666667 | C99: 0.274371633 | D99: -0.002270980922 | E99: -0.2617801047 | F99: -0.1857874165 | U99: 0.009666666667 | V99: 1.000174739 | W99: 0.00964546341 | X99: 0.0001833175294 | Y99: 0.03612685732 | Z99: 0.9956745745 | AA99: 0.03790038243 | AB99: 0 | AC99: 0 | AD99: 1 | AE99: 0.0006666666667 | AF99: 1.01780537e-06 | AG99: 0.0001776702736 | AH99: 0.004
B100: 0.64 | C100: 0.2743410702 | D100: -0.002335248167 | E100: -0.2617801047 | F100: -0.1855237217 | U100: 0.009 | V100: 1.000151484 | W100: 0.008981584963 | X100: 0.0001589201026 | Y100: 0.03364031615 | Z100: 0.9959610563 | AA100: 0.03529177297 | AB100: 0 | AC100: 0 | AD100: 1 | AE100: 0.0006666666667 | AF100: 1.123752105e-06 | AG100: 0.0002011981222 | AH100: 0.004666666667
B101: 0.6533333333 | C101: 0.2743096434 | D101: -0.002400565929 | E101: -0.2617801047 | F101: -0.1852541423 | U101: 0.008333333333 | V101: 1.000129886 | W101: 0.008317514946 | X101: 0.0001362619994 | Y101: 0.03115305745 | Z101: 0.9962492854 | AA101: 0.03268241078 | AB101: 0 | AC101: 0 | AD101: 1 | AE101: 0.0006666666667 | AF101: 1.214593438e-06 | AG101: 0.0002229863961 | AH101: 0.005333333333
B102: 0.6666666667 | C102: 0.2742773382 | D102: -0.002466968966 | E102: -0.2617801047 | F102: -0.1849785457 | U102: 0.007666666667 | V102: 1.000109946 | W102: 0.007653252194 | X102: 0.0001153437231 | Y102: 0.02866507687 | Z102: 0.9965392629 | AA102: 0.03007229126 | AB102: 0 | AC102: 0 | AD102: 1 | AE102: 0.0006666666667 | AF102: 1.291489253e-06 | AG102: 0.0002430345902 | AH102: 0.006
B103: 0.68 | C103: 0.2742441401 | D103: -0.002534492494 | E103: -0.2617801047 | F103: -0.1846967961 | U103: 0.007 | V103: 1.000091666 | W103: 0.00698879554 | X103: 9.616578033e-05 | Y103: 0.02617637003 | Z103: 0.9968309897 | AA103: 0.02746140983 | AB103: 0 | AC103: 0 | AD103: 1 | AE103: 0.0006666666667 | AF103: 1.355599774e-06 | AG103: 0.0002613421968 | AH103: 0.006666666667
B104: 0.6933333333 | C104: 0.2742100337 | D104: -0.002603172208 | E104: -0.2617801047 | F104: -0.1844087547 | U104: 0.006333333333 | V104: 1.000075045 | W104: 0.006324143819 | X104: 7.872868037e-05 | Y104: 0.02368693257 | Z104: 0.9971244669 | AA104: 0.02484976191 | AB104: 0 | AC104: 0 | AD104: 1 | AE104: 0.0006666666667 | AF104: 1.40808556e-06 | AG104: 0.0002779087047 | AH104: 0.007333333333
B105: 0.7066666667 | C105: 0.2741750034 | D105: -0.002673044296 | E105: -0.2617801047 | F105: -0.1841142799 | U105: 0.005666666667 | V105: 1.000060083 | W105: 0.005659295862 | X105: 6.30329358e-05 | Y105: 0.02119676012 | Z105: 0.9974196955 | AA105: 0.02223734292 | AB105: 0 | AC105: 0 | AD105: 1 | AE105: 0.0006666666667 | AF105: 1.450107518e-06 | AG105: 0.0002927336 | AH105: 0.008
B106: 0.72 | C106: 0.2741390332 | D106: -0.002744145467 | E106: -0.2617801047 | F106: -0.1838132266 | U106: 0.005 | V106: 1.000046782 | W106: 0.004994250502 | X106: 4.907906219e-05 | Y106: 0.0187058483 | Z106: 0.9977166766 | AA106: 0.01962414826 | AB106: 0 | AC106: 0 | AD106: 1 | AE106: 0.0006666666667 | AF106: 1.482826892e-06 | AG106: 0.0003058163655 | AH106: 0.008666666667
B107: 0.7333333333 | C107: 0.2741021063 | D107: -0.002816512965 | E107: -0.2617801047 | F107: -0.1835054467 | U107: 0.004333333333 | V107: 1.000035142 | W107: 0.00432900657 | X107: 3.686757818e-05 | Y107: 0.01621419273 | Z107: 0.9980154112 | AA107: 0.01701017334 | AB107: 0 | AC107: 0 | AD107: 1 | AE107: 0.0006666666667 | AF107: 1.507405278e-06 | AG107: 0.0003171564811 | AH107: 0.009333333333
B108: 0.7466666667 | C108: 0.2740642056 | D108: -0.00289018459 | E108: -0.2617801047 | F108: -0.1831907886 | U108: 0.003666666667 | V108: 1.000025164 | W108: 0.003663562897 | X108: 2.639900548e-05 | Y108: 0.01372178904 | Z108: 0.9983159004 | AA108: 0.01439541357 | AB108: 0 | AC108: 0 | AD108: 1 | AE108: 0.0006666666667 | AF108: 1.525004615e-06 | AG108: 0.0003267534235 | AH108: 0.01
B109: 0.76 | C109: 0.2740253135 | D109: -0.002965198722 | E109: -0.2617801047 | F109: -0.1828690975 | U109: 0.003 | V109: 1.000016847 | W109: 0.002997918313 | X109: 1.767386886e-05 | Y109: 0.01122863284 | Z109: 0.9986181451 | AA109: 0.01177986435 | AB109: 0 | AC109: 0 | AD109: 1 | AE109: 0.0006666666667 | AF109: 1.536787194e-06 | AG109: 0.0003346066664 | AH109: 0.01066666667
B110: 0.7733333333 | C110: 0.2739854117 | D110: -0.003041594337 | E110: -0.2617801047 | F110: -0.1825402151 | U110: 0.002333333333 | V110: 1.000010192 | W110: 0.002332071646 | X110: 1.069269614e-05 | Y110: 0.008734719739 | Z110: 0.9989221465 | AA110: 0.009163521076 | AB110: 0 | AC110: 0 | AD110: 1 | AE110: 0.0006666666667 | AF110: 1.543915658e-06 | AG110: 0.0003407156804 | AH110: 0.01133333333
B111: 0.7866666667 | C111: 0.2739444817 | D111: -0.003119411033 | E111: -0.2617801047 | F111: -0.1822039795 | U111: 0.001666666667 | V111: 1.000005201 | W111: 0.001666021727 | X111: 5.456018235e-06 | Y111: 0.006240045363 | Z111: 0.9992279055 | AA111: 0.006546379152 | AB111: 0 | AC111: 0 | AD111: 1 | AE111: 0.0006666666667 | AF111: 1.547553004e-06 | AG111: 0.0003450799332 | AH111: 0.012
B112: 0.8 | C112: 0.2739025041 | D112: -0.003198689045 | E112: -0.2617801047 | F112: -0.1818602252 | U112: 0.001 | V112: 1.000001872 | W112: 0.0009997673815 | X112: 1.964369108e-06 | Y112: 0.003744605315 | Z112: 0.9995354233 | AA112: 0.003928433968 | AB112: 0 | AC112: 0 | AD112: 1 | AE112: 0.0006666666667 | AF112: 1.548862583e-06 | AG112: 0.0003476988891 | AH112: 0.01266666667
B113: 0.8133333333 | C113: 0.2738594593 | D113: -0.003279469272 | E113: -0.2617801047 | F113: -0.1815087831 | U113: 0.0003333333333 | V113: 1.000000208 | W113: 0.0003333074379 | X113: 2.182858029e-07 | Y113: 0.001248395203 | Z113: 0.9998447009 | AA113: 0.001309680917 | AB113: 0 | AC113: 0 | AD113: 1 | AE113: 0.0006666666667 | AF113: 1.549008107e-06 | AG113: 0.0003485720098 | AH113: 0.01333333333
B114: 0.8266666667 | C114: 0.2738153269 | D114: -0.003361793297 | E114: -0.2617801047 | F114: -0.1811494802
B115: 0.84 | C115: 0.273770086 | D115: -0.003445703406 | E115: -0.2617801047 | F115: -0.1807821398
B116: 0.8533333333 | C116: 0.2737237152 | D116: -0.003531242617 | E116: -0.2617801047 | F116: -0.180406581
B117: 0.8666666667 | C117: 0.2736761925 | D117: -0.003618454695 | E117: -0.2617801047 | F117: -0.1800226192
B118: 0.88 | C118: 0.2736274952 | D118: -0.00370738418 | E118: -0.2617801047 | F118: -0.1796300654
B119: 0.8933333333 | C119: 0.2735776002 | D119: -0.003798076409 | E119: -0.2617801047 | F119: -0.1792287265
B120: 0.9066666667 | C120: 0.2735264837 | D120: -0.003890577539 | E120: -0.2617801047 | F120: -0.1788184049
B121: 0.92 | C121: 0.2734741212 | D121: -0.003984934573 | E121: -0.2617801047 | F121: -0.178398899
B122: 0.9333333333 | C122: 0.2734204876 | D122: -0.00408119538 | E122: -0.2617801047 | F122: -0.1779700022
B123: 0.9466666667 | C123: 0.2733655573 | D123: -0.004179408727 | E123: -0.2617801047 | F123: -0.1775315036
B124: 0.96 | C124: 0.2733093037 | D124: -0.004279624295 | E124: -0.2617801047 | F124: -0.1770831875
B125: 0.9733333333 | C125: 0.2732517 | D125: -0.004381892713 | E125: -0.2617801047 | F125: -0.1766248334
B126: 0.9866666667 | C126: 0.2731927184 | D126: -0.00448626558 | E126: -0.2617801047 | F126: -0.1761562157
B127: 1 | C127: 0.2731323305 | D127: -0.004592795491 | E127: -0.2617801047 | F127: -0.175677104
B128: 1.013333333 | C128: 0.2730705071 | D128: -0.004701536066 | E128: -0.2617801047 | F128: -0.1751872626
B129: 1.026666667 | C129: 0.2730072184 | D129: -0.004812541976 | E129: -0.2617801047 | F129: -0.1746864506
B130: 1.04 | C130: 0.2729424339 | D130: -0.004925868971 | E130: -0.2617801047 | F130: -0.1741744217
B131: 1.053333333 | C131: 0.2728761221 | D131: -0.00504157391 | E131: -0.2617801047 | F131: -0.1736509239
B132: 1.066666667 | C132: 0.272808251 | D132: -0.005159714788 | E132: -0.2617801047 | F132: -0.1731156999
B133: 1.08 | C133: 0.2727387876 | D133: -0.005280350765 | E133: -0.2617801047 | F133: -0.1725684863
B134: 1.093333333 | C134: 0.2726676985 | D134: -0.005403542198 | E134: -0.2617801047 | F134: -0.172009014
B135: 1.106666667 | C135: 0.2725949489 | D135: -0.00552935067 | E135: -0.2617801047 | F135: -0.1714370079
B136: 1.12 | C136: 0.2725205037 | D136: -0.005657839025 | E136: -0.2617801047 | F136: -0.1708521867
B137: 1.133333333 | C137: 0.2724443265 | D137: -0.005789071391 | E137: -0.2617801047 | F137: -0.1702542627
B138: 1.146666667 | C138: 0.2723663806 | D138: -0.005923113222 | E138: -0.2617801047 | F138: -0.1696429418
B139: 1.16 | C139: 0.2722866277 | D139: -0.006060031326 | E139: -0.2617801047 | F139: -0.1690179234
B140: 1.173333333 | C140: 0.2722050293 | D140: -0.006199893899 | E140: -0.2617801047 | F140: -0.1683789002
B141: 1.186666667 | C141: 0.2721215456 | D141: -0.006342770559 | E141: -0.2617801047 | F141: -0.1677255578
B142: 1.2 | C142: 0.2720361358 | D142: -0.006488732383 | E142: -0.2617801047 | F142: -0.167057575
B143: 1.213333333 | C143: 0.2719487583 | D143: -0.006637851941 | E143: -0.2617801047 | F143: -0.1663746232
B144: 1.226666667 | C144: 0.2718593706 | D144: -0.006790203332 | E144: -0.2617801047 | F144: -0.1656763666
B145: 1.24 | C145: 0.271767929 | D145: -0.006945862223 | E145: -0.2617801047 | F145: -0.1649624618
B146: 1.253333333 | C146: 0.271674389 | D146: -0.007104905884 | E146: -0.2617801047 | F146: -0.1642325577
B147: 1.266666667 | C147: 0.2715787047 | D147: -0.007267413229 | E147: -0.2617801047 | F147: -0.1634862954
B148: 1.28 | C148: 0.2714808296 | D148: -0.007433464855 | E148: -0.2617801047 | F148: -0.1627233079
B149: 1.293333333 | C149: 0.2713807158 | D149: -0.007603143082 | E149: -0.2617801047 | F149: -0.16194322
B150: 1.306666667 | C150: 0.2712783143 | D150: -0.007776531992 | E150: -0.2617801047 | F150: -0.1611456481
B151: 1.32 | C151: 0.2711735752 | D151: -0.007953717476 | E151: -0.2617801047 | F151: -0.1603301999
B152: 1.333333333 | C152: 0.2710664471 | D152: -0.008134787271 | E152: -0.2617801047 | F152: -0.1594964745
B153: 1.346666667 | C153: 0.2709568778 | D153: -0.008319831008 | E153: -0.2617801047 | F153: -0.1586440619
B154: 1.36 | C154: 0.2708448135 | D154: -0.008508940252 | E154: -0.2617801047 | F154: -0.1577725429
B155: 1.373333333 | C155: 0.2707301994 | D155: -0.008702208553 | E155: -0.2617801047 | F155: -0.1568814889
B156: 1.386666667 | C156: 0.2706129795 | D156: -0.00889973149 | E156: -0.2617801047 | F156: -0.1559704618
B157: 1.4 | C157: 0.2704930963 | D157: -0.009101606715 | E157: -0.2617801047 | F157: -0.1550390136
B158: 1.413333333 | C158: 0.2703704912 | D158: -0.009307934009 | E158: -0.2617801047 | F158: -0.1540866863
B159: 1.426666667 | C159: 0.270245104 | D159: -0.009518815325 | E159: -0.2617801047 | F159: -0.1531130116
B160: 1.44 | C160: 0.2701168734 | D160: -0.009734354839 | E160: -0.2617801047 | F160: -0.1521175106
B161: 1.453333333 | C161: 0.2699857365 | D161: -0.009954659008 | E161: -0.2617801047 | F161: -0.1510996939
B162: 1.466666667 | C162: 0.269851629 | D162: -0.01017983661 | E162: -0.2617801047 | F162: -0.1500590609
B163: 1.48 | C163: 0.2697144852 | D163: -0.01040999882 | E163: -0.2617801047 | F163: -0.1489951
B164: 1.493333333 | C164: 0.2695742379 | D164: -0.01064525924 | E164: -0.2617801047 | F164: -0.147907288
B165: 1.506666667 | C165: 0.2694308184 | D165: -0.01088573397 | E165: -0.2617801047 | F165: -0.14679509
B166: 1.52 | C166: 0.2692841562 | D166: -0.01113154165 | E166: -0.2617801047 | F166: -0.1456579591
B167: 1.533333333 | C167: 0.2691341794 | D167: -0.01138280356 | E167: -0.2617801047 | F167: -0.1444953361
B168: 1.546666667 | C168: 0.2689808145 | D168: -0.01163964361 | E168: -0.2617801047 | F168: -0.1433066493
B169: 1.56 | C169: 0.2688239863 | D169: -0.01190218848 | E169: -0.2617801047 | F169: -0.1420913143
B170: 1.573333333 | C170: 0.2686636178 | D170: -0.01217056762 | E170: -0.2617801047 | F170: -0.1408487334
B171: 1.586666667 | C171: 0.2684996302 | D171: -0.01244491335 | E171: -0.2617801047 | F171: -0.1395782957
B172: 1.6 | C172: 0.2683319432 | D172: -0.01272536091 | E172: -0.2617801047 | F172: -0.1382793764
B173: 1.613333333 | C173: 0.2681604745 | D173: -0.01301204852 | E173: -0.2617801047 | F173: -0.1369513368
B174: 1.626666667 | C174: 0.2679851398 | D174: -0.01330511748 | E174: -0.2617801047 | F174: -0.135593524
B175: 1.64 | C175: 0.2678058531 | D175: -0.0136047122 | E175: -0.2617801047 | F175: -0.1342052703
B176: 1.653333333 | C176: 0.2676225264 | D176: -0.0139109803 | E176: -0.2617801047 | F176: -0.132785893
B177: 1.666666667 | C177: 0.2674350696 | D177: -0.01422407266 | E177: -0.2617801047 | F177: -0.1313346942
B178: 1.68 | C178: 0.2672433909 | D178: -0.01454414353 | E178: -0.2617801047 | F178: -0.1298509603
B179: 1.693333333 | C179: 0.2670473959 | D179: -0.01487135056 | E179: -0.2617801047 | F179: -0.1283339619
B180: 1.706666667 | C180: 0.2668469886 | D180: -0.01520585491 | E180: -0.2617801047 | F180: -0.1267829529
B181: 1.72 | C181: 0.2666420703 | D181: -0.01554782132 | E181: -0.2617801047 | F181: -0.1251971707
B182: 1.733333333 | C182: 0.2664325407 | D182: -0.0158974182 | E182: -0.2617801047 | F182: -0.1235758356
B183: 1.746666667 | C183: 0.2662182966 | D183: -0.01625481768 | E183: -0.2617801047 | F183: -0.1219181503
B184: 1.76 | C184: 0.2659992329 | D184: -0.01662019575 | E184: -0.2617801047 | F184: -0.1202232998
B185: 1.773333333 | C185: 0.265775242 | D185: -0.01699373229 | E185: -0.2617801047 | F185: -0.1184904506
B186: 1.786666667 | C186: 0.2655462138 | D186: -0.01737561121 | E186: -0.2617801047 | F186: -0.1167187508
B187: 1.8 | C187: 0.2653120358 | D187: -0.01776602048 | E187: -0.2617801047 | F187: -0.1149073291
B188: 1.813333333 | C188: 0.2650725931 | D188: -0.0181651523 | E188: -0.2617801047 | F188: -0.1130552949
B189: 1.826666667 | C189: 0.2648277678 | D189: -0.01857320312 | E189: -0.2617801047 | F189: -0.1111617375
B190: 1.84 | C190: 0.2645774399 | D190: -0.01899037379 | E190: -0.2617801047 | F190: -0.1092257258
B191: 1.853333333 | C191: 0.2643214862 | D191: -0.01941686962 | E191: -0.2617801047 | F191: -0.107246308
B192: 1.866666667 | C192: 0.264059781 | D192: -0.01985290052 | E192: -0.2617801047 | F192: -0.1052225107
B193: 1.88 | C193: 0.2637921957 | D193: -0.02029868106 | E193: -0.2617801047 | F193: -0.1031533387
B194: 1.893333333 | C194: 0.2635185989 | D194: -0.02075443062 | E194: -0.2617801047 | F194: -0.1010377748
B195: 1.906666667 | C195: 0.263238856 | D195: -0.02122037347 | E195: -0.2617801047 | F195: -0.09887477854
B196: 1.92 | C196: 0.2629528296 | D196: -0.02169673887 | E196: -0.2617801047 | F196: -0.09666328653
B197: 1.933333333 | C197: 0.2626603792 | D197: -0.02218376123 | E197: -0.2617801047 | F197: -0.09440221131
B198: 1.946666667 | C198: 0.2623613609 | D198: -0.02268168017 | E198: -0.2617801047 | F198: -0.09209044112
B199: 1.96 | C199: 0.262055628 | D199: -0.02319074067 | E199: -0.2617801047 | F199: -0.08972683924
B200: 1.973333333 | C200: 0.26174303 | D200: -0.02371119319 | E200: -0.2617801047 | F200: -0.08731024349
B201: 1.986666667 | C201: 0.2614234134 | D201: -0.02424329379 | E201: -0.2617801047 | F201: -0.08483946562
B202: 2 | C202: 0.2610966211 | D202: -0.02478730424 | E202: -0.2617801047 | F202: -0.08231329076
... 224 more rows

Sheet ActModel
K2: A | M2: B | T2: Bode Chart
D3: A | F3: B | K3: 1 | L3: =1-L4 -> 0.28 | M3: 0 | O3: 1 | P3: 2 | Q3: 4 | R3: 8 | T3: 4wrph6
D4: =K3 -> 1 | E4: =L3 -> 0.28 | F4: =M3 -> 0 | K4: 0 | L4: 0.72 | M4: =J7 -> 0.001 | O4: 0.72 | P4: 0.53 | Q4: 0.32 | R4: 0.18 | T4: https://dc-us.resource.bosch.com/media/us/products_13/product_groups_1/industrial_hydraulics_5/pdfs_4/re29028.pdf
D5: =K4 -> 0 | E5: =L4 -> 0.72 | F5: 1 | O5: 0.9351914686 | P5: 0.932 | Q5: 0.932 | R5: 0.932 | T5: Time delay LQR
T6: https://pdfs.semanticscholar.org/b608/0631ff51fe3119818c4bd2b0796b516128dd.pdf
B7: =J7 -> 0.001 | J7: =1/1000 -> 0.001 | K7: =MAX(K209:K508) -> 0.3963662953 | M7: =M8*3.14159 -> 125.6636 | O7: Phase | T7: http://www.eng.newcastle.edu.au/~mf140/home/Papers/TAC_2015.pdf
K8: =MIN(K210:K509) -> -0.4000760494 | M8: 40 | O8: -130 | P8: =-O8-90 -> 40
K9: =MAX(K211:K510)-MIN(K211:K510) -> 0.7964423447 | M9: =(MAX(M211:M510)-MIN(M211:M510))/M7 -> 1.996057289 | O9: =RADIANS(O8) -> -2.268928028
C10: X(1) | D10: X(2) | E10: U(1) | K10: X(1) | L10: X(2) | M10: U(1) | O10: Phase
B11: 0 | C11: =$F$4*E11 -> 0 | D11: =$F$5*E11 -> 1 | E11: 1 | I11: 0 | J11: 0 | K11: -0.5 | L11: 0 | M11: =$M$7*SIN(2*3.14159*$M$8*J11) -> 0 | N11: =0.5*M11/$M$7 -> 0 | O11: =0.5*SIN(2*3.14159*$M$8*J11+$O$9) -> -0.3830222216
B12: =B11+$B$7 -> 0.001 | C12: =$D$4*C11+$E$4*D11+$F$4*E12 -> 0.28 | D12: =$D$5*C11+$E$5*D11+$F$5*E12 -> 0.72 | E12: 0 | I12: 1 | J12: =J11+$J$7 -> 0.001 | K12: =$K$3*K11+$L$3*L11+$M$3*M12 -> -0.5 | L12: =$K$4*K11+$L$4*L11+$M$4*M12 -> 0.03125124067 | M12: =$M$7*SIN(2*3.14159*$M$8*J12) -> 31.25124067 | N12: =0.5*M12/$M$7 -> 0.1243448408 | O12: =0.5*SIN(2*3.14159*$M$8*J12+$O$9) -> -0.4509162173 | U12: 10*Log(V1/V2)
B13: =B12+$B$7 -> 0.002 | C13: =$D$4*C12+$E$4*D12+$F$4*E13 -> 0.4816 | D13: =$D$5*C12+$E$5*D12+$F$5*E13 -> 0.5184 | E13: 0 | I13: 2 | J13: =J12+$J$7 -> 0.002 | K13: =$K$3*K12+$L$3*L12+$M$3*M13 -> -0.4912496526 | L13: 0.08303974753 | M13: 60.53885425 | N13: 0.240876651 | O13: -0.4904775364 | V13: Amplitude
B14: 0.003 | C14: 0.626752 | D14: 0.373248 | E14: 0 | I14: 3 | J14: 0.003 | K14: =$D$4*K13+$E$4*L13+$F$4*M14 -> -0.4679985233 | L14: 0.1458112136 | M14: 86.02259536 | N14: 0.3422733208 | O14: -0.4992203999 | T14: Freq | U14: DB | V14: Ratio
B15: 0.004 | C15: 0.73126144 | D15: 0.26873856 | E15: 0 | I15: 4 | J15: 0.004 | K15: -0.4271713835 | L15: 0.2110853033 | M15: 106.1012295 | N15: 0.4221637353 | O15: -0.4765954623 | T15: 1 | U15: 0 | V15: =10^(U15/10) -> 1 | W15: 1
B16: 0.005 | C16: 0.8065082368 | D16: 0.1934917632 | E16: 0 | I16: 5 | J16: 0.005 | K16: -0.3680674986 | L16: 0.2714945628 | M16: 119.5131444 | N16: 0.4755280941 | O16: -0.4240243293 | T16: 2 | U16: 0 | V16: =10^(U16/10) -> 1 | W16: 1
B17: 0.006 | C17: 0.8606859305 | D17: 0.1393140695 | E17: 0 | I17: 6 | J17: 0.006 | K17: -0.292049021 | L17: 0.3208917068 | M17: 125.4156215 | N17: 0.4990133242 | O17: -0.3448102331 | T17: 5 | U17: 0 | V17: 1 | W17: 1
B18: 0.007 | C18: 0.89969387 | D18: 0.10030613 | E18: 0 | I18: 7 | J18: 0.007 | K18: -0.2021993431 | L18: 0.354479816 | M18: 123.4377872 | N18: 0.4911437646 | O18: -0.2439304782 | T18: 10 | U18: 0 | V18: 1 | W18: 1 | X18: 0.99
B19: 0.008 | C19: 0.9277795864 | D19: 0.07222041363 | E19: 0 | I19: 8 | J19: 0.008 | K19: -0.1029449946 | L19: 0.3689293832 | M19: 113.7039157 | N19: 0.4524138878 | O19: -0.1277236999 | T19: 15 | U19: 0 | V19: 1 | W19: 1
B20: 0.009 | C20: 0.9480013022 | D20: 0.05199869781 | E20: 0 | I20: 9 | J20: 0.009 | K20: 0.0003552326729 | L20: 0.3624547769 | M20: 96.82562097 | N20: 0.3852572303 | O20: -0.003491585418 | T20: 20 | U20: 0 | V20: 1 | W20: 1 | X20: 0.94
B21: 0.01 | C21: 0.9625609376 | D21: 0.03743906243 | E21: 0 | I21: 10 | J21: 0.01 | K21: 0.1018425702 | L21: 0.334830866 | M21: 73.86342665 | N21: 0.2938934849 | O21: 0.1209599179 | T21: 25 | U21: 0 | V21: 1 | W21: 1
B22: 0.011 | C22: 0.9730438751 | D22: 0.02695612495 | E22: 0 | I22: 11 | J22: 0.011 | K22: 0.1955952127 | L22: 0.2873383529 | M22: 46.26012938 | N22: 0.1840633619 | O22: 0.2378110775 | T22: 30 | U22: 0 | V22: 1 | W22: 1 | X22: 0.87
B23: 0.012 | C23: 0.98059159 | D23: 0.01940840996 | E23: 0 | I23: 12 | J23: 0.012 | K23: 0.2760499515 | L23: 0.222633757 | M23: 15.75014293 | N23: 0.06266788046 | O23: 0.3397197176 | T23: 35 | U23: 0 | V23: 1 | W23: 1
B24: 0.013 | C24: 0.9860259448 | D24: 0.01397405517 | E24: 0 | I24: 13 | J24: 0.013 | K24: 0.3383874034 | L24: 0.1445468238 | M24: -15.74948127 | N24: -0.0626652478 | O24: 0.4202825543 | T24: 40 | U24: -0.3 | V24: 0.9332543008 | W24: 1 | X24: 0.8
B25: 0.014 | C25: 0.9899386803 | D25: 0.01006131972 | E25: 0 | I25: 14 | J25: 0.014 | K25: 0.3788605141 | L25: 0.05781420383 | M25: -46.25950929 | N25: -0.1840608947 | O25: 0.4744375368 | T25: 60 | U25: -1.8 | V25: 0.660693448 | W25: 1 | X25: 0.73
B26: 0.015 | C26: 0.9927558498 | D26: 0.007244150201 | E26: 0 | I26: 15 | J26: 0.015 | K26: 0.3950484912 | L26: -0.03223666034 | M26: -73.8628871 | N26: -0.2938913381 | O26: 0.4987819141 | T26: 80 | U26: -4 | V26: 0.3981071706 | W26: 1 | X26: 0.55
B27: 0.016 | C27: 0.9947842119 | D27: 0.005215788145 | E27: 0 | I27: 16 | J27: 0.016 | K27: 0.3860222263 | L27: -0.1200355913 | M27: -96.82519586 | N27: -0.3852555389 | O27: 0.491786042 | T27: 90 | U27: -7 | V27: 0.1995262315 | X27: 0.51
B28: 0.017 | C28: 0.9962446325 | D28: 0.003755367464 | E28: 0 | I28: 17 | J28: 0.017 | K28: 0.3524122607 | L28: -0.2001292574 | M28: -113.7036317 | N28: -0.4524127579 | O28: 0.4538894961
B29: 0.018 | C29: 0.9972961354 | D29: 0.002703864574 | E29: 0 | I29: 18 | J29: 0.018 | K29: 0.2963760686 | L29: -0.2675307275 | M29: -123.4376622 | N29: -0.4911432674 | O29: 0.3874734519
B30: 0.019 | C30: 0.9980532175 | D30: 0.001946782494 | E30: 0 | I30: 19 | J30: 0.019 | K30: 0.2214674649 | L30: -0.3180377872 | M30: -125.4156634 | N30: -0.4990134908 | O30: 0.2967110666
B31: 0.02 | C31: 0.9985983166 | D31: 0.001401683395 | E31: 0 | I31: 20 | J31: 0.02 | K31: 0.1324168845 | L31: -0.3485005573 | M31: -119.5133505 | N31: -0.4755289141 | O31: 0.187305265
B32: 0.021 | C32: 0.998990788 | D32: 0.001009212045 | E32: 0 | I32: 21 | J32: 0.021 | K32: 0.03483672844 | L32: -0.3570219882 | M32: -106.1015869 | N32: -0.4221651571 | O32: 0.06613040456
B33: 0.022 | C33: 0.9992733673 | D33: 0.0007266326722 | E33: 0 | I33: 22 | J33: 0.022 | K33: -0.06512942824 | L33: -0.343078913 | M33: -86.02308152 | N33: -0.3422752552 | O33: -0.05919966542
B34: 0.023 | C34: 0.9994768245 | D34: 0.0005231755239 | E34: 0 | I34: 23 | J34: 0.023 | K34: -0.1611915239 | L34: -0.307556256 | M34: -60.53943867 | N34: -0.2408789764 | O34: -0.180810009
B35: 0.024 | C35: 0.9996233136 | D35: 0.0003766863772 | E35: 0 | I35: 24 | J35: 0.024 | K35: -0.2473072756 | L35: -0.252692391 | M35: -31.25188663 | N35: -0.124347411 | O35: -0.2910594137
B36: 0.025 | C36: 0.9997287858 | D36: 0.0002712141916 | E36: 0 | I36: 25 | J36: 0.025 | K36: -0.318061145 | L36: -0.1819391884 | M36: -0.0006669192922 | N36: -2.653589791e-06 | O36: -0.3830205159
B37: 0.026 | C37: 0.9998047258 | D37: 0.000195274218 | E37: 0 | J37: 0.026 | K37: -0.3690041178 | L37: -0.09974562096 | M37: 31.2505947 | N37: 0.1243422705 | O37: -0.4509150708
B38: 0.027 | C38: 0.9998594026 | D38: 0.0001405974369 | E38: 0 | J38: 0.027 | K38: -0.3969328917 | L38: -0.01127857727 | M38: 60.53826982 | N38: 0.2408743257 | O38: -0.490477021
B39: 0.028 | C39: 0.9998987698 | D39: 0.0001012301546 | E39: 0 | J39: 0.028 | K39: -0.4000908933 | L39: 0.07790153356 | M39: 86.0221092 | N39: 0.3422713864 | O39: -0.499220548
B40: 0.029 | C40: 0.9999271143 | D40: 7.288571131e-05 | E40: 0 | J40: 0.029 | K40: -0.3782784639 | L40: 0.1621899763 | M40: 106.1008722 | N40: 0.4221623134 | O40: -0.4765962646
B41: 0.03 | C41: 0.9999475223 | D41: 5.247771214e-05 | E41: 0 | J41: 0.03 | K41: -0.3328652705 | L41: 0.2362897213 | M41: 119.5129383 | N41: 0.4755272741 | O41: -0.4240257355
B42: 0.031 | C42: 0.999962216 | D42: 3.778395274e-05 | E42: 0 | J42: 0.031 | K42: -0.2667041486 | L42: 0.295544179 | M42: 125.4155797 | N42: 0.4990131576 | O42: -0.3448121547
B43: 0.032 | C43: 0.9999727956 | D43: 2.720444597e-05 | E43: 0 | J43: 0.032 | K43: -0.1839517785 | L43: 0.336229721 | M43: 123.4379121 | N43: 0.4911442618 | O43: -0.2439327945
B44: 0.033 | C44: 0.9999804128 | D44: 1.95872011e-05 | E44: 0 | J44: 0.033 | K44: -0.08980745657 | L44: 0.3557895987 | M44: 113.7041996 | N44: 0.4524150176 | O44: -0.1277262655
B45: 0.034 | C45: 0.9999858972 | D45: 1.410278479e-05 | E45: 0 | J45: 0.034 | K45: 0.009813631071 | L45: 0.3529945572 | M45: 96.82604608 | N45: 0.3852589218 | O45: -0.003494238943
B46: 0.035 | C46: 0.999989846 | D46: 1.015400505e-05 | E46: 0 | J46: 0.035 | K46: 0.1086521071 | L46: 0.3280200474 | M46: 73.8639662 | N46: 0.2938956317 | O46: 0.1209573431
B47: 0.036 | C47: 0.9999926891 | D47: 7.310883637e-06 | E47: 0 | J47: 0.036 | K47: 0.2004977203 | L47: 0.2824351836 | M47: 46.26074946 | N47: 0.1840658292 | O47: 0.2378087432
B48: 0.037 | C48: 0.9999947362 | D48: 5.263836218e-06 | E48: 0 | J48: 0.037 | K48: 0.2795795717 | L48: 0.2191041367 | M48: 15.75080459 | N48: 0.06267051313 | O48: 0.3397177705
B49: 0.038 | C49: 0.99999621 | D49: 3.789962077e-06 | E49: 0 | J49: =J48+$J$7 -> 0.038 | K49: 0.34092873 | L49: 0.1420061589 | M49: -15.7488196 | N49: -0.06266261513 | O49: 0.4202811168
B50: 0.039 | C50: 0.9999972712 | D50: 2.728772696e-06 | E50: 0 | J50: 0.039 | K50: 0.3806904545 | L50: 0.05598554517 | M50: -46.2588892 | N50: -0.1840584274 | O50: 0.4744366991
B51: 0.04 | C51: 0.9999980353 | D51: 1.964716341e-06 | E51: 0 | J51: 0.04 | K51: 0.3963664071 | L51: -0.03355275503 | M51: -73.86234755 | N51: -0.2938891913 | O51: 0.4987817289
B52: 0.041 | C52: 0.9999985854 | D52: 1.414595765e-06 | E52: 0 | J52: 0.041 | K52: 0.3869716357 | L52: -0.1209827544 | M52: -96.82477075 | N52: -0.3852538474 | O52: 0.491786521
B53: 0.042 | C53: 0.9999989815 | D53: 1.018508951e-06 | E53: 0 | J53: 0.042 | K53: 0.3530964645 | L53: -0.2008109309 | M53: -113.7033477 | N53: -0.4524116281 | O53: 0.4538906092
B54: 0.043 | C54: 0.9999992667 | D54: 7.333264448e-07 | E54: 0 | J54: 0.043 | K54: 0.2968694039 | L54: -0.2680214074 | M54: -123.4375372 | N54: -0.4911427701 | O54: 0.387475129
B55: 0.044 | C55: 0.999999472 | D55: 5.279950402e-07 | E55: 0 | J55: 0.044 | K55: 0.2218234098 | L55: -0.3183911186 | M55: -125.4157053 | N55: -0.4990136574 | O55: 0.2967132024
B56: 0.045 | C56: 0.9999996198 | D56: 3.80156429e-07 | E56: 0 | J56: 0.045 | K56: 0.1326738966 | L56: -0.348755162 | M56: -119.5135566 | N56: -0.4755297341 | O56: 0.1873077254
B57: 0.046 | C57: 0.9999997263 | D57: 2.737126289e-07 | E57: 0 | J57: 0.046 | K57: 0.0350224512 | L57: -0.3572056609 | M57: -106.1019442 | N57: -0.422166579 | O57: 0.06613303484
B58: 0.047 | C58: 0.9999998029 | D58: 1.970730928e-07 | E58: 0 | J58: 0.047 | K58: -0.06499513384 | L58: -0.3432116435 | M58: -86.02356768 | N58: -0.3422771896 | O58: -0.05919703049
B59: 0.048 | C59: 0.9999998581 | D59: 1.418926268e-07 | E59: 0 | J59: 0.048 | K59: -0.161094394 | L59: -0.3076524064 | M59: -60.5400231 | N59: -0.2408813017 | O59: -0.1808075349
B60: 0.049 | C60: 0.9999998978 | D60: 1.021626913e-07 | E60: 0 | J60: 0.049 | K60: -0.2472370678 | L60: -0.2527622652 | M60: -31.2525326 | N60: -0.1243499812 | O60: -0.2910572561
B61: 0.05 | C61: 0.9999999264 | D61: 7.355713773e-08 | E61: 0 | J61: 0.05 | K61: -0.3180105021 | L61: -0.1819901648 | M61: -0.001333838584 | N61: -5.307179581e-06 | O61: -0.3830188101
B62: 0.051 | C62: 0.999999947 | D62: 5.296113917e-08 | E62: 0 | J62: 0.051 | K62: -0.3689677482 | L62: -0.09978296993 | M62: 31.24994873 | N62: 0.1243397003 | O62: -0.4509139242
B63: 0.052 | C63: 0.9999999619 | D63: 3.81320202e-08 | E63: 0 | J63: 0.052 | K63: -0.3969069798 | L63: -0.01130605296 | M63: 60.53768539 | N63: 0.2408720003 | O63: -0.4904765056
B64: 0.053 | C64: 0.9999999725 | D64: 2.745505454e-08 | E64: 0 | J64: 0.053 | K64: -0.4000726746 | L64: 0.0778812649 | M64: 86.02162303 | N64: 0.342269452 | O64: -0.4992206961
B65: 0.054 | C65: 0.9999999802 | D65: 1.976763927e-08 | E65: 0 | J65: 0.054 | K65: -0.3782659205 | L65: 0.1621750255 | M65: 106.1005148 | N65: 0.4221608915 | O65: -0.476597067
B66: 0.055 | C66: 0.9999999858 | D66: 1.423270028e-08 | E66: 0 | J66: 0.055 | K66: -0.3328569133 | L66: 0.2362787506 | M66: 119.5127322 | N66: 0.4755264541 | O66: -0.4240271417
B67: 0.056 | C67: 0.9999999898 | D67: 1.02475442e-08 | E67: 0 | J67: 0.056 | K67: -0.2666988631 | L67: 0.2955362382 | M67: 125.4155378 | N67: 0.4990129909 | O67: -0.3448140764
B68: 0.057 | C68: 0.9999999926 | D68: 7.378231823e-09 | E68: 0 | J68: 0.057 | K68: -0.1839487164 | L68: 0.3362241286 | M68: 123.4380371 | N68: 0.491144759 | O68: -0.2439351109
B69: 0.058 | C69: 0.9999999947 | D69: 5.312326913e-09 | E69: 0 | J69: 0.058 | K69: -0.08980596043 | L69: 0.3557858562 | M69: 113.7044836 | N69: 0.4524161474 | O69: -0.127728831
B70: 0.059 | C70: 0.9999999962 | D70: 3.824875377e-09 | E70: 0 | J70: 0.059 | K70: 0.009814079295 | L70: 0.3529922876 | M70: 96.82647119 | N70: 0.3852606132 | O70: -0.003496892468
B71: 0.06 | C71: 0.9999999972 | D71: 2.753910272e-09 | E71: 0 | J71: 0.06 | K71: 0.1086519198 | L71: 0.3280189528 | M71: 73.86450574 | N71: 0.2938977784 | O71: 0.1209547683
B72: 0.061 | C72: 0.999999998 | D72: 1.982815395e-09 | E72: 0 | J72: 0.061 | K72: 0.2004972266 | L72: 0.2824350156 | M72: 46.26136954 | N72: 0.1840682964 | O72: 0.237806409
B73: 0.062 | C73: 0.9999999986 | D73: 1.427627085e-09 | E73: 0 | J73: 0.062 | K73: 0.279579031 | L73: 0.2191046775 | M73: 15.75146625 | N73: 0.06267314579 | O73: 0.3397158235
B74: 0.063 | C74: 0.999999999 | D74: 1.027891501e-09 | E74: 0 | J74: 0.063 | K74: 0.3409283407 | L74: 0.1420072098 | M74: -15.74815794 | N74: -0.06265998246 | O74: 0.4202796793
B75: 0.064 | C75: 0.9999999993 | D75: 7.400818807e-10 | E75: 0 | J75: 0.064 | K75: 0.3806903594 | L75: 0.05598692196 | M75: -46.25826911 | N75: -0.1840559602 | O75: 0.4744358615
B76: 0.065 | C76: 0.9999999995 | D76: 5.328589541e-10 | E76: 0 | J76: 0.065 | K76: 0.3963666976 | L76: =$K$4*K75+$L$4*L75+$M$4*M76 -> -0.03355122418 | M76: =$M$7*SIN(2*3.14159*$M$8*J76) -> -73.861808 | N76: =0.5*M76/$M$7 -> -0.2938870444 | O76: =0.5*SIN(2*3.14159*$M$8*J76+$O$9) -> 0.4987815438
B77: =B76+$B$7 -> 0.066 | C77: =$D$4*C76+$E$4*D76+$F$4*E77 -> 0.9999999996 | D77: =$D$5*C76+$E$5*D76+$F$5*E77 -> 3.83658447e-10 | E77: 0 | J77: 0.066 | K77: 0.3869723548 | L77: -0.120981227 | M77: -96.82434563 | N77: -0.3852521559 | O77: 0.491787
B78: 0.067 | C78: 0.9999999997 | D78: 2.762340818e-10 | E78: 0 | J78: 0.067 | K78: =$D$4*K77+$E$4*L77+$F$4*M78 -> 0.3530976112 | L78: -0.2008095472 | M78: -113.7030638 | N78: -0.4524104982 | O78: 0.4538917222
B79: 0.068 | C79: 0.9999999998 | D79: 1.988885389e-10 | E79: 0 | J79: 0.068 | K79: 0.296870938 | L79: -0.2680202862 | M79: -123.4374122 | N79: -0.4911422728 | O79: 0.3874768062
B80: 0.069 | C80: 0.9999999999 | D80: 1.43199748e-10 | E80: 0 | J80: 0.069 | K80: 0.2218252579 | L80: -0.3183903533 | M80: -125.4157472 | N80: -0.499013824 | O80: 0.2967153382
B81: 0.07 | C81: 0.9999999999 | D81: 1.031038186e-10 | E81: 0 | J81: 0.07 | K81: 0.132675959 | L81: -0.348754817 | M81: -119.5137627 | N81: -0.4755305541 | O81: 0.1873101857
B82: 0.071 | C82: 0.9999999999 | D82: 7.423474937e-11 | E82: 0 | J82: 0.071 | K82: 0.03502461019 | L82: -0.3572057698 | M82: -106.1023016 | N82: -0.4221680008 | O82: 0.06613566511
B83: 0.072 | C83: 0.9999999999 | D83: 5.344901955e-11 | E83: 0 | J83: 0.072 | K83: -0.06499300536 | L83: -0.3432122081 | M83: -86.02405384 | N83: -0.3422791239 | O83: -0.05919439557
B84: 0.073 | C84: 1 | D84: 3.848329407e-11 | E84: 0 | J84: 0.073 | K84: -0.1610924236 | L84: -0.3076533974 | M84: -60.54060752 | N84: -0.2408836271 | O84: -0.1808050609
B85: 0.074 | C85: 1 | D85: 2.770797173e-11 | E85: 0 | J85: 0.074 | K85: -0.2472353749 | L85: -0.2527636247 | M85: -31.25317856 | N85: -0.1243525514 | O85: -0.2910550984
B86: 0.075 | C86: 1 | D86: 1.994973965e-11 | E86: 0 | J86: 0.075 | K86: -0.3180091898 | L86: -0.1819918105 | M86: -0.002000757876 | N86: -7.960769372e-06 | O86: -0.3830171044
B87: 0.076 | C87: 1 | D87: 1.436381255e-11 | E87: 0 | J87: 0.076 | K87: -0.3689668967 | L87: -0.09978480081 | M87: 31.24930276 | N87: 0.1243371301 | O87: -0.4509127775
B88: 0.077 | C88: 1 | D88: 1.034194503e-11 | E88: 0 | J88: 0.077 | K88: -0.396906641 | L88: -0.01130795562 | M88: 60.53710096 | N88: 0.2408696749 | O88: -0.4904759901
B89: 0.078 | C89: 1 | D89: 7.446200424e-12 | E89: 0 | J89: 0.078 | K89: -0.4000728685 | L89: 0.07787940881 | M89: 86.02113686 | N89: 0.3422675176 | O89: -0.4992208442
B90: 0.079 | C90: 1 | D90: 5.361264305e-12 | E90: 0 | J90: 0.079 | K90: -0.3782666341 | L90: 0.1621733318 | M90: 106.1001574 | N90: 0.4221594696 | O90: -0.4765978693
B91: 0.08 | C91: 1 | D91: 3.8601103e-12 | E91: 0 | J91: 0.08 | K91: -0.3328581012 | L91: 0.236277325 | M91: 119.5125261 | N91: 0.4755256341 | O91: -0.4240285478
B92: 0.081 | C92: 1 | D92: 2.779279416e-12 | E92: 0 | J92: 0.081 | K92: -0.2667004502 | L92: 0.2955351699 | M92: 125.4154959 | N92: 0.4990128243 | O92: -0.344815998
B93: 0.082 | C93: 1 | D93: 2.001081179e-12 | E93: 0 | J93: 0.082 | K93: -0.1839506026 | L93: 0.3362234844 | M93: 123.438162 | N93: 0.4911452562 | O93: -0.2439374272
B94: 0.083 | C94: 1 | D94: 1.440778449e-12 | E94: 0 | J94: 0.083 | K94: -0.08980802697 | L94: 0.3557856763 | M94: 113.7047675 | N94: 0.4524172772 | O94: -0.1277313966
B95: 0.084 | C95: 1 | D95: 1.037360483e-12 | E95: 0 | J95: 0.084 | K95: 0.009811962389 | L95: 0.3529925832 | M95: 96.82689629 | N95: 0.3852623046 | O95: -0.003499545993
B96: 0.085 | C96: 1 | D96: 7.468995481e-13 | E96: 0 | J96: 0.085 | K96: 0.1086498857 | L96: 0.3280197052 | M96: 73.86504528 | N96: 0.2938999252 | O96: 0.1209521936
B97: 0.086 | C97: 1 | D97: 5.377676746e-13 | E97: 0 | J97: 0.086 | K97: 0.2004954031 | L97: 0.2824361774 | M97: 46.26198963 | N97: 0.1840707636 | O97: 0.2378040748
B98: 0.087 | C98: 1 | D98: 3.871927257e-13 | E98: 0 | J98: 0.087 | K98: 0.2795775328 | L98: 0.2191061756 | M98: 15.7521279 | N98: 0.06267577845 | O98: 0.3397138764
B99: 0.088 | C99: 1 | D99: 2.787787625e-13 | E99: 0 | J99: 0.088 | K99: 0.340927262 | L99: 0.1420089502 | M99: -15.74749628 | N99: -0.06265734979 | O99: 0.4202782418
B100: 0.089 | C100: 1 | D100: 2.00720709e-13 | E100: 0 | J100: 0.089 | K100: 0.380689768 | L100: 0.05598879509 | M100: -46.25764902 | N100: -0.1840534929 | O100: 0.4744350239
B101: 0.09 | C101: 1 | D101: 1.445189105e-13 | E101: 0 | J101: 0.09 | K101: 0.3963666306 | L101: -0.03354933598 | M101: -73.86126844 | N101: -0.2938848976 | O101: 0.4987813587
B102: 0.091 | C102: 1 | D102: 1.040536156e-13 | E102: 0 | J102: 0.091 | K102: 0.3869728166 | L102: -0.1209794424 | M102: -96.82392052 | N102: -0.3852504644 | O102: 0.491787479
B103: 0.092 | C103: 1 | D103: 7.49186032e-14 | E103: 0 | J103: 0.092 | K103: 0.3530985727 | L103: -0.2008079783 | M103: -113.7027798 | N103: -0.4524093683 | O103: 0.4538928352
B104: 0.093 | C104: 1 | D104: 5.39413943e-14 | E104: 0 | J104: 0.093 | K104: 0.2968723388 | L104: -0.2680190317 | M104: -123.4372873 | N104: -0.4911417756 | O104: 0.3874784833
B105: 0.094 | C105: 1 | D105: 3.88378039e-14 | E105: 0 | J105: 0.094 | K105: 0.2218270099 | L105: -0.3183894918 | M105: -125.415789 | N105: -0.4990139906 | O105: 0.2967174741
B106: 0.095 | C106: 1 | D106: 2.796321881e-14 | E106: 0 | J106: 0.095 | K106: 0.1326779522 | L106: -0.3487544029 | M106: -119.5139688 | N106: -0.4755313741 | O106: 0.1873126461
B107: 0.096 | C107: 1 | D107: 2.013351754e-14 | E107: 0 | J107: 0.096 | K107: 0.03502671938 | L107: -0.357205829 | M107: -106.1026589 | N107: -0.4221694226 | O107: 0.06613829539
B108: 0.097 | C108: 1 | D108: 1.449613263e-14 | E108: 0 | J108: 0.097 | K108: -0.06499091273 | L108: -0.3432127369 | M108: -86.02454 | N108: -0.3422810583 | O108: -0.05919176064
B109: 0.098 | C109: 1 | D109: 1.043721549e-14 | E109: 0 | J109: 0.098 | K109: -0.161090479 | L109: -0.3076543625 | M109: -60.54119194 | N109: -0.2408859524 | O109: -0.1808025869
B110: 0.099 | C110: 1 | D110: 7.514795155e-15 | E110: 0 | J110: 0.099 | K110: -0.2472337005 | L110: -0.2527649655 | M110: -31.25382453 | N110: -0.1243551216 | O110: -0.2910529408
B111: 0.1 | C111: 1 | D111: 5.410652512e-15 | E111: 0 | J111: 0.1 | K111: -0.3180078909 | L111: -0.1819934428 | M111: -0.002667677168 | N111: -1.061435916e-05 | O111: -0.3830153987
J112: 0.101 | K112: -0.3689660549 | L112: -0.09978662206 | M112: 31.24865679 | N112: 0.1243345599 | O112: -0.4509116309
J113: =J112+$J$7 -> 0.102 | K113: -0.3969063091 | L113: -0.01130985135 | M113: 60.53651653 | N113: 0.2408673495 | O113: -0.4904754747
J114: 0.103 | K114: -0.4000730674 | L114: 0.07787755772 | M114: 86.02065069 | N114: 0.3422655832 | O114: -0.4992209923
J115: 0.104 | K115: -0.3782673513 | L115: 0.1621716416 | M115: 106.0998001 | N115: 0.4221580477 | O115: -0.4765986716
J116: 0.105 | K116: -0.3328592916 | L116: 0.236275902 | M116: 119.51232 | N116: 0.475524814 | O116: -0.424029954
J117: 0.106 | K117: -0.266702039 | L117: 0.2955341035 | M117: 125.415454 | N117: 0.4990126576 | O117: -0.3448179196
J118: 0.107 | K118: -0.1839524901 | L118: 0.3362228415 | M118: 123.438287 | N118: 0.4911457534 | O118: -0.2439397436
J119: 0.108 | K119: -0.08981009447 | L119: 0.3557854973 | M119: 113.7050515 | N119: 0.452418407 | O119: -0.1277339621
J120: 0.109 | K120: 0.009809844786 | L120: 0.3529928795 | M120: 96.82732139 | N120: 0.3852639961 | O120: -0.003502199518
J121: 0.11 | K121: 0.108647851 | L121: 0.328020458 | M121: 73.86558483 | N121: 0.293902072 | O121: 0.1209496188
J122: 0.111 | K122: 0.2004935793 | L122: 0.2824373395 | M122: 46.26260971 | N122: 0.1840732309 | O122: 0.2378017405
J123: 0.112 | K123: 0.2795760344 | L123: 0.219107674 | M123: 15.75278956 | N123: 0.06267841111 | O123: 0.3397119294
J124: 0.113 | K124: 0.3409261831 | L124: 0.1420106907 | M124: -15.74683462 | N124: -0.06265471712 | O124: 0.4202768043
J125: 0.114 | K125: 0.3806891765 | L125: 0.05599066834 | M125: -46.25702893 | N125: -0.1840510256 | O125: 0.4744341862
J126: 0.115 | K126: 0.3963665636 | L126: -0.03354744767 | M126: -73.86072888 | N126: -0.2938827508 | O126: 0.4987811735
J127: 0.116 | K127: 0.3869732782 | L127: -0.1209776577 | M127: -96.82349539 | N127: -0.3852487729 | O127: 0.4917879579
J128: 0.117 | K128: 0.3530995341 | L128: -0.2008064094 | M128: -113.7024958 | N128: -0.4524082384 | O128: 0.4538939482
J129: 0.118 | K129: 0.2968737395 | L129: -0.268017777 | M129: -123.4371623 | N129: -0.4911412783 | O129: 0.3874801604
J130: 0.119 | K130: 0.2218287619 | L130: -0.3183886303 | M130: -125.4158309 | N130: -0.4990141572 | O130: 0.2967196099
J131: 0.12 | K131: 0.1326799454 | L131: -0.3487539887 | M131: -119.5141748 | N131: -0.475532194 | O131: 0.1873151064
J132: 0.121 | K132: 0.03502882857 | L132: -0.3572058881 | M132: -106.1030163 | N132: -0.4221708444 | O132: 0.06614092566
J133: 0.122 | K133: -0.0649888201 | L133: -0.3432132656 | M133: -86.02502615 | N133: -0.3422829926 | O133: -0.05918912571
J134: 0.123 | K134: -0.1610885345 | L134: -0.3076553276 | M134: -60.54177636 | N134: -0.2408882777 | O134: -0.1808001129
J135: 0.124 | K135: -0.2472320262 | L135: -0.2527663063 | M135: -31.25447049 | N135: -0.1243576918 | O135: -0.2910507831
J136: 0.125 | K136: -0.318006592 | L136: -0.1819950752 | M136: -0.00333459646 | N136: -1.326794895e-05 | O136: -0.383013693
J137: 0.126 | K137: -0.368965213 | L137: -0.0997884433 | M137: 31.24801082 | N137: 0.1243319896 | O137: -0.4509104843
J138: 0.127 | K138: -0.3969059771 | L138: -0.01131174708 | M138: 60.5359321 | N138: 0.2408650241 | O138: -0.4904749592
J139: 0.128 | K139: -0.4000732663 | L139: 0.07787570662 | M139: 86.02016451 | N139: 0.3422636488 | O139: -0.4992211403
J140: 0.129 | K140: -0.3782680685 | L140: =$K$4*K139+$L$4*L139+$M$4*M140 -> 0.1621699515 | M140: =$M$7*SIN(2*3.14159*$M$8*J140) -> 106.0994427 | N140: =0.5*M140/$M$7 -> 0.4221566258 | O140: =0.5*SIN(2*3.14159*$M$8*J140+$O$9) -> -0.4765994739
J141: 0.13 | K141: -0.332860482 | L141: 0.236274479 | M141: 119.5121139 | N141: 0.4755239939 | O141: -0.4240313601
J142: 0.131 | K142: =$D$4*K141+$E$4*L141+$F$4*M142 -> -0.2667036279 | L142: 0.295533037 | M142: 125.4154121 | N142: 0.4990124909 | O142: -0.3448198412
J143: 0.132 | K143: -0.1839543776 | L143: 0.3362221986 | M143: 123.4384119 | N143: 0.4911462506 | O143: -0.2439420599
J144: 0.133 | K144: -0.08981216197 | L144: 0.3557853184 | M144: 113.7053354 | N144: 0.4524195368 | O144: -0.1277365277
J145: 0.134 | K145: 0.009807727183 | L145: 0.3529931757 | M145: 96.82774649 | N145: 0.3852656875 | O145: -0.003504853042
J146: 0.135 | K146: 0.1086458164 | L146: 0.3280212109 | M146: 73.86612436 | N146: 0.2939042187 | O146: 0.120947044
J147: 0.136 | K147: 0.2004917554 | L147: 0.2824385016 | M147: 46.26322979 | N147: 0.1840756981 | O147: 0.2377994062
J148: 0.137 | K148: 0.2795745359 | L148: 0.2191091724 | M148: 15.75345122 | N148: 0.06268104376 | O148: 0.3397099823
J149: 0.138 | K149: 0.3409251042 | L149: 0.1420124312 | M149: -15.74617296 | N149: -0.06265208444 | O149: 0.4202753667
J150: 0.139 | K150: 0.3806885849 | L150: 0.0559925416 | M150: -46.25640884 | N150: -0.1840485584 | O150: 0.4744333485
J151: 0.14 | K151: 0.3963664965 | L151: -0.03354555937 | M151: -73.86018932 | N151: -0.2938806039 | O151: 0.4987809883
J152: 0.141 | K152: 0.3869737399 | L152: -0.120975873 | M152: -96.82307027 | N152: -0.3852470814 | O152: 0.4917884369
J153: 0.142 | K153: 0.3531004955 | L153: -0.2008048404 | M153: -113.7022118 | N153: -0.4524071085 | O153: 0.4538950612
J154: 0.143 | K154: 0.2968751401 | L154: -0.2680165224 | M154: -123.4370373 | N154: -0.491140781 | O154: 0.3874818375
J155: 0.144 | K155: 0.2218305139 | L155: -0.3183877689 | M155: -125.4158727 | N155: -0.4990143237 | O155: 0.2967217457
J156: 0.145 | K156: 0.1326819386 | L156: -0.3487535745 | M156: -119.5143809 | N156: -0.4755330139 | O156: 0.1873175667
J157: 0.146 | K157: 0.03503093775 | L157: -0.3572059472 | M157: -106.1033736 | N157: -0.4221722662 | O157: 0.06614355593
J158: 0.147 | K158: -0.06498672747 | L158: -0.3432137943 | M158: -86.0255123 | N158: -0.342284927 | O158: -0.05918649078
J159: 0.148 | K159: -0.1610865899 | L159: -0.3076562927 | M159: -60.54236077 | N159: -0.2408906031 | O159: -0.1807976388
J160: 0.149 | K160: -0.2472303518 | L160: -0.2527676472 | M160: -31.25511645 | N160: -0.124360262 | O160: -0.2910486254
J161: 0.15 | K161: -0.318005293 | L161: -0.1819967075 | M161: -0.004001515752 | N161: -1.592153874e-05 | O161: -0.3830119872
J162: 0.151 | K162: -0.3689643711 | L162: -0.09979026453 | M162: 31.24736485 | N162: 0.1243294194 | O162: -0.4509093376
J163: 0.152 | K163: -0.3969056452 | L163: -0.0113136428 | M163: 60.53534766 | N163: 0.2408626987 | O163: -0.4904744437
J164: 0.153 | K164: -0.4000734652 | L164: 0.07787385552 | M164: 86.01967834 | N164: 0.3422617144 | O164: -0.4992212884
J165: 0.154 | K165: -0.3782687856 | L165: 0.1621682613 | M165: 106.0990853 | N165: 0.4221552038 | O165: -0.4766002762
J166: 0.155 | K166: -0.3328616725 | L166: 0.236273056 | M166: 119.5119078 | N166: 0.4755231739 | O166: -0.4240327662
J167: 0.156 | K167: -0.2667052168 | L167: 0.2955319705 | M167: 125.4153702 | N167: 0.4990123242 | O167: -0.3448217628
J168: 0.157 | K168: -0.183956265 | L168: 0.3362215557 | M168: 123.4385369 | N168: 0.4911467477 | O168: -0.2439443763
J169: 0.158 | K169: -0.08981422946 | L169: 0.3557851394 | M169: 113.7056194 | N169: 0.4524206666 | O169: -0.1277390932
J170: 0.159 | K170: 0.00980560958 | L170: 0.352993472 | M170: 96.82817158 | N170: 0.3852673789 | O170: -0.003507506567
J171: 0.16 | K171: 0.1086437817 | L171: 0.3280219637 | M171: 73.8666639 | N171: 0.2939063655 | O171: 0.1209444692
J172: 0.161 | K172: 0.2004899316 | L172: 0.2824396637 | M172: 46.26384986 | N172: 0.1840781653 | O172: 0.237797072
J173: 0.162 | K173: 0.2795730374 | L173: 0.2191106708 | M173: 15.75411288 | N173: 0.06268367642 | O173: 0.3397080353
J174: 0.163 | K174: 0.3409240252 | L174: 0.1420141717 | M174: -15.74551129 | N174: -0.06264945177 | O174: 0.4202739292
J175: 0.164 | K175: 0.3806879933 | L175: 0.05599441485 | M175: -46.25578875 | N175: -0.1840460911 | O175: 0.4744325109
J176: 0.165 | K176: 0.3963664295 | L176: -0.03354367107 | M176: -73.85964976 | N176: -0.2938784571 | O176: 0.4987808031
J177: =J176+$J$7 -> 0.166 | K177: 0.3869742016 | L177: -0.1209740883 | M177: -96.82264514 | N177: -0.3852453898 | O177: 0.4917889158
J178: 0.167 | K178: 0.3531014568 | L178: -0.2008032714 | M178: -113.7019279 | N178: -0.4524059786 | O178: 0.4538961742
J179: 0.168 | K179: 0.2968765408 | L179: -0.2680152677 | M179: -123.4369123 | N179: -0.4911402836 | O179: 0.3874835145
J180: 0.169 | K180: 0.2218322659 | L180: -0.3183869074 | M180: -125.4159146 | N180: -0.4990144902 | O180: 0.2967238815
J181: 0.17 | K181: 0.1326839318 | L181: -0.3487531603 | M181: -119.514587 | N181: -0.4755338339 | O181: 0.1873200271
J182: 0.171 | K182: 0.03503304693 | L182: -0.3572060063 | M182: -106.1037309 | N182: -0.422173688 | O182: 0.0661461862
J183: 0.172 | K183: -0.06498463484 | L183: -0.343214323 | M183: -86.02599845 | N183: -0.3422868613 | O183: -0.05918385584
J184: 0.173 | K184: -0.1610846453 | L184: -0.3076572577 | M184: -60.54294519 | N184: -0.2408929284 | O184: -0.1807951648
J185: 0.174 | K185: -0.2472286775 | L185: -0.252768988 | M185: -31.25576241 | N185: -0.1243628322 | O185: -0.2910464677
J186: 0.175 | K186: -0.3180039941 | L186: -0.1819983398 | M186: -0.004668435044 | N186: -1.857512853e-05 | O186: -0.3830102814
J187: 0.176 | K187: -0.3689635292 | L187: -0.09979208577 | M187: 31.24671888 | N187: 0.1243268491 | O187: -0.450908191
J188: 0.177 | K188: -0.3969053132 | L188: -0.01131553853 | M188: 60.53476322 | N188: 0.2408603733 | O188: -0.4904739282
J189: 0.178 | K189: -0.400073664 | L189: 0.07787200441 | M189: 86.01919216 | N189: 0.3422597799 | O189: -0.4992214364
J190: 0.179 | K190: -0.3782695028 | L190: 0.1621665712 | M190: 106.098728 | N190: 0.4221537819 | O190: -0.4766010785
J191: 0.18 | K191: -0.3328628629 | L191: 0.2362716329 | M191: 119.5117017 | N191: 0.4755223538 | O191: -0.4240341723
J192: 0.181 | K192: -0.2667068057 | L192: 0.295530904 | M192: 125.4153283 | N192: 0.4990121575 | O192: -0.3448236844
J193: 0.182 | K193: -0.1839581525 | L193: 0.3362209127 | M193: 123.4386618 | N193: 0.4911472449 | O193: -0.2439466926
J194: 0.183 | K194: -0.08981629695 | L194: 0.3557849605 | M194: 113.7059033 | N194: 0.4524217963 | O194: -0.1277416587
J195: 0.184 | K195: 0.009803491976 | L195: 0.3529937682 | M195: 96.82859667 | N195: 0.3852690703 | O195: -0.003510160091
J196: 0.185 | K196: 0.1086417471 | L196: 0.3280227165 | M196: 73.86720344 | N196: 0.2939085122 | O196: 0.1209418944
J197: 0.186 | K197: 0.2004881077 | L197: 0.2824408259 | M197: 46.26446994 | N197: 0.1840806325 | O197: 0.2377947377
J198: 0.187 | K198: 0.2795715389 | L198: 0.2191121692 | M198: 15.75477454 | N198: 0.06268630907 | O198: 0.3397060882
J199: 0.188 | K199: 0.3409229463 | L199: 0.1420159122 | M199: -15.74484963 | N199: -0.06264681909 | O199: 0.4202724916
J200: 0.189 | K200: 0.3806874017 | L200: 0.0559962881 | M200: -46.25516865 | N200: -0.1840436238 | O200: 0.4744316732
J201: 0.19 | K201: 0.3963663624 | L201: -0.03354178276 | M201: -73.8591102 | N201: -0.2938763102 | O201: 0.4987806179
... 810 more rows
